Workbook

Sheet Orthodromie
B1: Calcul d'une position orthodromique à partir d'un point, d'un cap et d'une distance
C4: Position de Départ | I4: Distance (km) | J4: Cap de
C5: Latitude | F5: Longitude | I5: Imposée | J5: au dépert
B6: A | C6: 43 | D6: 6 | E6: 3 | F6: 3 | G6: 5 | H6: =IF(OR(F6<0,AND(F6=0,G6<0)),"W","E") -> E | I6: 616 | J6: 303.292
B7: =C7+D7/60 -> 43.1 | C7: =C6 -> 43 | D7: =IF(C6<0,-ABS(D6),ABS(D6)) -> 6 | E7: =F7+G7/60 -> 3.083333333 | F7: =F6 -> 3 | G7: =IF(F6<0,-ABS(G6),ABS(G6)) -> 5
F8: =F7 -> 3
C9: =VincentyDirLat(C7,F7,J6,I7) -> 43 | F9: =VincentyDirLon(C7,F7,J6,I7) -> 3
C10: Position calculé | I10: Distance | J10: Caps | S10: 0
C11: Latitude | F11: Longitude | I11: Calculée | J11: Calculés
B12: C | C12: =TRUNC(B13) -> 45 | D12: =(B13-C12)*60 -> 57.34299188 | E12: =IF(OR(C12<0,AND(C12=0,D12<0)),"S","N") -> N | F12: =TRUNC(E13) -> -3 | G12: =(E13-F12)*60 -> -33.78285395 | H12: =IF(OR(F12<0,AND(F12=0,G12<0)),"W","E") -> W | I12: =VincentyInvDistance(B7,E7,B13,E13)/1000 -> 616.0000001 | J12: =VincentyInvFwdAzimuth(B7,E7,B13,E13) -> 303.292 | K12: ="Point "&B6 -> Point A
B13: =VincentyDirLat(B7,E7,J6,I6*1000) -> 45.95571653 | E13: =VincentyDirLon(B7,E7,J6,I6*1000) -> -3.563047566 | G13: =IF(F12<0,-ABS(G12),ABS(G12)) -> -33.78285395 | J13: =VincentyInvRevAzimuth(B7,E7,B13,E13) -> 298.6270692 | K13: ="Point "&B12 -> Point C
B16: Calcul d'une distance orthodromique à partir de deux positions
C19: Positions des points | I19: Distance (km)
C20: Latitude | F20: Longitude | J20: Caps
B21: B | C21: 43 | D21: 6 | E21: =IF(OR(C21<0,AND(C21=0,D21<0)),"S","N") -> N | F21: 3 | G21: 5 | H21: =IF(OR(F21<0,AND(F21=0,G21<0)),"W","E") -> E | J21: =VincentyInvFwdAzimuth(B22,E22,B24,E24) -> 303.2919928 | K21: ="Point "&B21 -> Point B
B22: =C22+D22/60 -> 43.1 | C22: =C21 -> 43 | D22: =IF(C21<0,-ABS(D21),ABS(D21)) -> 6 | E22: =F22+G22/60 -> 3.083333333 | F22: =F21 -> 3 | G22: =IF(F21<0,-ABS(G21),ABS(G21)) -> 5 | I22: =VincentyInvDistance(B22,E22,B24,E24)/1000 -> 616.0001729
B23: A | C23: 45 | D23: 57.343 | E23: =IF(OR(C23<0,AND(C23=0,D23<0)),"S","N") -> N | F23: -3 | G23: 33.783 | H23: =IF(OR(F23<0,AND(F23=0,G23<0)),"W","E") -> W | J23: =VincentyInvRevAzimuth(B22,E22,B24,E24) -> 298.6270603 | K23: ="Point "&B23 -> Point A
B24: =C24+D24/60 -> 45.95571667 | C24: =C23 -> 45 | D24: =IF(C23<0,-ABS(D23),ABS(D23)) -> 57.343 | E24: =F24+G24/60 -> -3.56305 | F24: =F23 -> -3 | G24: =IF(F23<0,-ABS(G23),ABS(G23)) -> -33.783
